Cogmind - Beta 16 @@@ ROGUE MODE // 2025.11.30 @ 07:34:47 Player: Miles Result: Destroyed by G-47 Trooper with Particle Gun Performance ------------- Evolutions (2) 1000 Regions Visited (3) 600 Robots Destroyed (56) 280 Value Destroyed (1750) 1750 Prototype IDs (2) 40 Alien Tech Used (0) 0 Bonus (0) 0 TOTAL SCORE: 3670 Bonus ------- None Cogmind --------- Core Integrity 0/550 Matter 300/300 Energy 100/100 System Corruption 0% Temperature Hot (275) Movement Core (700) Ox13 Location -8/Materials Parts ------- > --- POWER (1) -------- (None) > --- PROPULSION (5) --- (None) > --- UTILITY (3) ------ High-capacity Storage Unit Core Analyzer > --- WEAPON (2) ------- (None) > --- INVENTORY (20) --- Light Nuclear Core Light Nuclear Core Improved Deuterium Engine Improved Heat Sink Huge Storage Unit Compact Battery (200) Advanced Targeting Computer Powered Armor Powered Armor Hacking Suite Corruption Screen Corruption Screen Peak State ------------ > --- POWER ------------ Deuterium Engine > --- PROPULSION ------- VSS Leg Improved Carbon-fiber Leg Improved VTOL Module > --- UTILITY ---------- High-capacity Storage Unit Compact Battery Powered Armor > --- WEAPON ----------- Heavy Laser Heavy Assault Rifle > --- INVENTORY -------- Light Nuclear Core Improved Heat Sink Huge Storage Unit Compact Battery Advanced Targeting Computer Powered Armor Powered Armor Powered Armor Hacking Suite Corruption Screen Corruption Screen Improved Medium Laser Shotgun [Rating: 32] Favorites ----------- Power Ion Engine Engine Ion Engine Power Core Light Nuclear Core Propulsion Aluminum Leg Leg Aluminum Leg Wheel Wheel Flight Unit Improved VTOL Module Utility High-capacity Storage Unit Device Improved Terrain Scanner Storage High-capacity Storage Unit Processor Advanced Targeting Computer Protection Powered Armor Weapon High-powered Shotgun Energy Gun Small Laser Ballistic Gun High-powered Shotgun Ballistic Cannon Gauss Cannon Impact Weapon Hammer Slashing Weapon Mining Claw Build | -11 -10 -9 -8 ------- Run | Yrd Mat Mat Mat Slots Evolved 4 | . . 2 2 Power . | . . . . Propulsion 3 | . . 2 1 Utility 1 | . . . 1 Weapon . | . . . . Parts Attached 65 | 7 2 22 34 Power 7 | 1 . 2 4 Engine 6 | 1 . 1 4 Core 1 | . . 1 . Reactor . | . . . . Propulsion 24 | 2 . 8 14 Treads . | . . . . Leg 22 | 2 . 8 12 Wheel 1 | . . . 1 Hover . | . . . . Flight 1 | . . . 1 Utility 15 | 2 1 3 9 Device 2 | 1 . 1 . Storage 4 | 1 1 . 2 Processor 4 | . . 2 2 Hackware . | . . . . Protection 5 | . . . 5 Artifact . | . . . . Weapon 19 | 2 1 9 7 Energy Gun 4 | 1 . 2 1 Energy Cannon . | . . . . Ballistic Gun 12 | 1 . 6 5 Ballistic Cannon 1 | . . . 1 Launcher . | . . . . Special Weapon . | . . . . Impact Weapon 1 | . 1 . . Slashing Weapon 1 | . . 1 . Piercing Weapon . | . . . . Special Melee Weapon . | . . . . Unidentified Prototypes 2 | . . 1 1 Parts Lost 42 | . 1 7 34 Power 6 | . . 2 4 Propulsion 20 | . . 3 17 Utility 5 | . 1 1 3 Weapon 11 | . . 1 10 Highest Loss Streak 12 | . 1 3 12 To Critical Strikes 1 | . . . 1 Average Backups 15 | 5 10 18 17 Power 2 | 1 1 2 1 Propulsion 2 | 1 3 2 1 Utility 7 | . 2 7 10 Weapon 4 | 1 2 6 4 Tool/Special . | . . . . Unused Backups 28 | . 5 7 16 Power 5 | . 1 . 4 Propulsion 3 | . 2 . 1 Utility 13 | . 1 4 8 Weapon 7 | . 1 3 3 Tool/Special . | . . . . Average Slot Usage (%) 89 | . 96 98 82 Engine 8 | . 14 8 8 Core 1 | . . 2 . Leg 35 | . 28 43 31 Device 2 | . 10 4 . Storage 11 | . 14 11 12 Processor 6 | . . 5 8 Protection 2 | . . . 5 Energy Gun 3 | . 14 2 1 Ballistic Gun 11 | . 3 16 10 Ballistic Cannon 1 | . . . 2 Impact Weapon 2 | . 10 1 . Peak Build Rating 32 | 10 10 20 32 Average Rating 17 | 7 9 15 23 On Entrance 9 | . 10 7 20 Avg Prop Armor Cover (%) 3 | . . . 3 Naked Turns . | . . . . Heaviest Build 67 | 13 49 52 67 Greatest Support 50 | 20 20 40 50 Greatest Overweight (x) 20 | . 2 1 20 Average Overweight (x) 1 | . . 1 1 Largest Inventory Capacity 25 | 8 20 20 25 Average Capacity 18 | 7 14 20 20 Most Carried 20 | 8 15 20 20 Average Carried 15 | 5 10 18 17 Final Capacity 20 | 8 20 20 20 Final Carried 20 | 8 15 20 12 Class Distribution -------------------- 77% | Mutant 22% | Scavenger-Mutant Dominant Class ---------------- Mutant | -10/Materials Mutant | -9/Materials Mutant | -8/Materials Resources | -11 -10 -9 -8 ----------- Run | Yrd Mat Mat Mat Matter Collected 1725 | 297 20 525 883 Remotely . | . . . . Salvage Created 1934 | 245 133 599 957 Parts 99 | 23 5 26 45 Haulers Intercepted 3 | . 1 . 2 Recyclers Shooed 1 | . . . 1 Parts Field Recycled . | . . . . Retrieved Matter . | . . . . Parts Self-Destructed . | . . . . Prevented . | . . . . Parts Restored . | . . . . Kills | -11 -10 -9 -8 ------- Run | Yrd Mat Mat Mat Combat Hostiles Destroyed 40 | . 2 17 21 Guns 37 | . 2 17 18 Cannons 3 | . . . 3 Classes Destroyed 9 | 3 2 3 1 Worker 4 | 1 . 2 1 Tunneler 8 | 7 . . 1 Hauler 3 | . 1 . 2 Recycler 1 | 1 . . . Swarmer 3 | . . 3 . Grunt 27 | . 2 12 13 Duelist 2 | . . 1 1 Sentry 4 | . . 1 3 Specialist 4 | . . . 4 Best Kill Streak 5 | 4 2 5 4 Combat Bots Only 4 | . 2 4 4 Max Kills in Single Turn 2 | 1 1 2 2 Gunslinging 1 | . . 1 . Exploded . | . . . . Melee . | . . . . Uniques/NPCs Destroyed . | . . . . Combat | -11 -10 -9 -8 -------- Run | Yrd Mat Mat Mat Hostile Shots Fired 549 | . 27 148 374 Missed 137 | . 5 42 90 Hits 412 | . 22 106 284 Melee 9 | . . 1 8 Projectile 403 | . 22 105 276 AOE 1 | . . 1 . Critical Strikes 15 | . . 2 13 Damage Taken 5967 | . 291 1270 4406 Core 894 | . 96 243 555 Absorbed by Shields . | . . . . Core Remaining (%) 66 | 100 61 39 . Volleys Fired 180 | 27 7 48 98 Largest 2 | 2 1 2 2 Hottest 94 | 60 40 81 94 Shots Fired 322 | 54 7 87 174 Gun 291 | 54 7 87 143 Cannon 31 | . . . 31 Launcher . | . . . . Special . | . . . . Kinetic 251 | 27 . 82 142 Thermal 71 | 27 7 5 32 Explosive . | . . . . Electromagnetic . | . . . . Robot Hit Streak 20 | 4 6 20 16 Robot Miss Streak 7 | 3 1 7 3 Penetration Max . | . . . . Secondary Targets 8 | . . 6 2 Max Gunslinging Chain 1 | . . 1 1 Shots Hit Robots 247 | 30 12 66 139 Core Hits 102 | 13 4 33 52 Critical Kills 1 | . . . 1 Critical Parts Destroyed 2 | . . . 2 Critical Strikes 9 | . . 1 8 Burn 1 | . . 1 . Destroy 3 | . . . 3 Blast 5 | . . . 5 Melee Attacks 14 | . 9 5 . Impact 9 | . 9 . . Slashing 5 | . . 5 . Piercing . | . . . . Sneak Attacks 1 | . 1 . . Combat Hostiles . | . . . . Follow-up Attacks . | . . . . Damage Inflicted 4731 | 277 271 1242 2941 Guns 3724 | 277 65 1167 2215 Cannons 719 | . . . 719 Explosions . | . . . . Melee 276 | . 206 70 . Ramming 12 | . . 5 7 Kinetic 3686 | 104 . 1101 2481 Thermal 757 | 173 65 66 453 Explosive . | . . . . Electromagnetic . | . . . . Impact 206 | . 206 . . Slashing 70 | . . 70 . Piercing . | . . . . Highest Corruption . | . . . . Average Corruption . | . . . . Corruption Purged . | . . . . Corruption Blocked . | . . . . Overload Shots . | . . . . Overflow Damage 66 | . 15 . 51 Projectiles 51 | . . . 51 Explosions . | . . . . Melee 15 | . 15 . . Knockbacks 12 | . . . 12 Impact . | . . . . Kinetic 12 | . . . 12 Secondary . | . . . . Self-Inflicted Damage . | . . . . Shots . | . . . . Rammed 1 | . . . 1 Targets Rammed 4 | . . 1 3 Kicked 3 | . . 1 2 Crushed . | . . . . Highest Temperature 415 | 60 27 42 415 Average Temperature 72 | 20 17 12 100 Received Heat Transfer 2898 | . 168 516 2214 Effects 5 | . . . 5 Shutdowns 2 | . . . 2 Energy Bleed 2 | . . . 2 Interference 1 | . . . 1 Siege Activations . | . . . . Martial Activations . | . . . . Shielding Activations . | . . . . Robots Disrupted . | . . . . Combat Hostiles . | . . . . Robots Corrupted . | . . . . Combat Hostiles . | . . . . Parts Fried 1 | . 1 . . Impact Corruptions 1 | . 1 . . Robots Melted . | . . . . Combat Hostiles . | . . . . Parts Melted 1 | . . . 1 Heat Transferred 1660 | 400 150 222 888 Parts Sabotaged . | . . . . Parts Stolen . | . . . . Parts Stripped . | . . . . Power Chain Reactions . | . . . . Alert | -11 -10 -9 -8 ------- Run | Yrd Mat Mat Mat Maximum Alert Level . | . . . . Low Security (%) 100 | 100 100 100 100 Level 1 . | . . . . Level 2 . | . . . . Level 3 . | . . . . Level 4 . | . . . . Level 5 . | . . . . High Security . | . . . . Max Security . | . . . . Peak Influence 133 | 10 40 133 128 Initial 53 | . . 8 53 Average 27 | 1 4 25 39 Influence Increases 1279 | 45 57 493 684 Destroy 0b10 Robot/C 800 | . 40 340 420 Destroy 0b10 Robot/NC 80 | 45 5 10 20 Destroy Leader 156 | . 12 60 84 Successful Hack 7 | . . 7 . Disable Machine 30 | . . 15 15 Destroy Structure 11 | . . 1 10 Lose Combat Pursuer 195 | . . 60 135 Influence Decreases 1259 | 45 37 386 791 Entered New Map 86 | . . 12 74 Time Decay 762 | 45 37 266 414 Lost Part 363 | . . 60 303 Purge Threat 48 | . . 48 . Squads Dispatched 8 | . . 2 6 Investigation 2 | . . 1 1 Extermination . | . . . . Reinforcement 6 | . . 1 5 Assault . | . . . . Garrison . | . . . . Intercept . | . . . . Searches Triggered . | . . . . Construction Impeded . | . . . . Haulers Reinforced . | . . . . Active Scanning Responses . | . . . . Cargo Convoy Interrupts . | . . . . Stealth | -11 -10 -9 -8 --------- Run | Yrd Mat Mat Mat Distress Signals 4 | . . 4 . Communications Jammed . | . . . . Distress Signals . | . . . . Times Spotted 80 | . 3 37 40 Peak Tracking Total 7 | . 2 6 7 Tactical Retreats 7 | . . 3 4 Traps | -11 -10 -9 -8 ------- Run | Yrd Mat Mat Mat Traps Triggered 2 | . . 1 1 Indirectly . | . . . . Trap Hack Attempts . | . . . . Triggered . | . . . . Disarmed . | . . . . Reprogrammed . | . . . . Reused . | . . . . Traps Extracted . | . . . . Installed . | . . . . Triggered . | . . . . Machines | -11 -10 -9 -8 ---------- Run | Yrd Mat Mat Mat Machines Disabled 2 | . . 1 1 Max in Single Turn 1 | . . 1 1 Machines Repaired . | . . . . Machines Dismantled . | . . . . Machines Sabotaged . | . . . . Overloaded Fab Kills . | . . . . Hacking | -11 -10 -9 -8 --------- Run | Yrd Mat Mat Mat Machines Accessed 2 | . . 2 . Terminals 2 | . . 2 . Fabricators . | . . . . Repair Stations . | . . . . Recycling Units . | . . . . Scanalyzers . | . . . . Garrison Access . | . . . . Total Hacks 6 | . . 6 . Successful 3 | . . 3 . Failed 3 | . . 3 . Catastrophic 1 | . . 1 . Database Lockouts . | . . . . Manual 6 | . . 6 . Terminals 6 | . . 6 . Fabricators . | . . . . Repair Stations . | . . . . Recycling Units . | . . . . Scanalyzers . | . . . . Garrison Access . | . . . . Terminal Hacks 3 | . . 3 . Alert Level 1 | . . 1 . Unreport Threat 2 | . . 2 . Fabricator Hacks . | . . . . Repair Station Hacks . | . . . . Recycling Unit Hacks . | . . . . Scanalyzer . | . . . . Garrison Access Hacks . | . . . . Unauthorized Hacks . | . . . . Terminals . | . . . . Fabricators . | . . . . Repair Stations . | . . . . Recycling Units . | . . . . Scanalyzers . | . . . . Garrison Access . | . . . . Data Cores Recovered . | . . . . Used . | . . . . Hacking Detections 2 | . . 2 . Full Trace Events 1 | . . 1 . Feedback Events . | . . . . Feedback Blocked . | . . . . Robot Schematics Acquired . | . . . . Robots Built . | . . . . Authchips . | . . . . Time . | . . . . Total Robot Build Rating . | . . . . Part Schematics Acquired . | . . . . Parts Built . | . . . . Authchips . | . . . . Time . | . . . . Total Part Build Rating . | . . . . Part Studies Acquired . | . . . . Parts Repaired . | . . . . Time . | . . . . Parts Recycled . | . . . . Recycled Matter . | . . . . Retrieved Matter . | . . . . Retrieved Components . | . . . . Parts Scanalyzed . | . . . . Part Schematics Acquired . | . . . . Parts Damaged . | . . . . Bothacking | -11 -10 -9 -8 ------------ Run | Yrd Mat Mat Mat Used RIF Installer . | . . . . Robots Hacked . | . . . . Non-combat . | . . . . Combat . | . . . . Robot Hacks Applied . | . . . . Relay Couplers Released . | . . . . Fabnet Peak Effective % . | . . . . Robots Rewired . | . . . . Allies Hacked . | . . . . Hacks Repelled . | . . . . Allies | -11 -10 -9 -8 -------- Run | Yrd Mat Mat Mat Total Allies . | . . . . Largest Group . | . . . . Highest-Rated Group . | . . . . Highest-Rated Ally . | . . . . Total Orders . | . . . . Ally Attacks . | . . . . Total Damage . | . . . . Kills . | . . . . Allies Corrupted . | . . . . Allies Melted . | . . . . Intel | -11 -10 -9 -8 ------- Run | Yrd Mat Mat Mat Active Infowar (turns) 862 | 158 249 455 . Terrain 862 | 158 249 455 . Robot Analysis Total . | . . . . Derelict Logs Recovered . | . . . . Drone Launches . | . . . . Drone Recoveries . | . . . . Exploration | -11 -10 -9 -8 ------------- Run | Yrd Mat Mat Mat Turns Passed 3160 | 326 335 1043 1456 Spaces Moved 1277 | 195 164 435 483 Core 23 | 7 . . 16 Treads . | . . . . Legs 1241 | 188 164 435 454 Wheels 8 | . . . 8 Hover . | . . . . Flight 5 | . . . 5 Fastest Speed 50 | 50 120 190 120 Average Speed 184 | 117 169 190 212 Slowest Speed 1050 | 120 260 190 1050 Overloaded Moves . | . . . . Propulsion Burnouts . | . . . . Robots Hopped . | . . . . Potential Cave-ins . | . . . . Cave-ins Triggered . | . . . . Exploration Rate (%) 23 | 7 26 30 29 Regions Visited 3 Branch Regions . Pre-discovered Areas . | . . . . Known Exits Taken . | . . . . Unknown Exits Taken 3 | 1 1 1 . Scrap Searched . | . . . . Spaces Dug . | . . . . Terrain Destroyed 6 | . . . 6 Melee . | . . . . Projectile 6 | . . . 6 AOE . | . . . . Terrain Rammed . | . . . . Walls Destroyed . | . . . . Machines Disabled . | . . . . Actions | -11 -10 -9 -8 --------- Run | Yrd Mat Mat Mat Total 1751 | 243 203 560 745 Wait 74 | . . 6 68 Move 1274 | 194 163 434 483 Hop . | . . . . Pick Up 86 | 15 14 25 32 Fast Attach 3 | . . 1 2 Attach 50 | 7 . 10 33 Detach 3 | . . . 3 Swap 24 | . 2 14 8 Drop 39 | . 8 16 15 Fire 180 | 27 7 48 98 Melee 14 | . 9 5 . Ram 1 | . . . 1 Kick 3 | . . 1 2 Crush . | . . . . Escape Stasis . | . . . . Rewire . | . . . . Trap . | . . . . Miscellaneous . | . . . . Route ------- -11/Scrapyard -10/Materials -9/Materials -8/Materials History --------- Turn | Location | Event 2 | -11/Scrapyard | Met Revision 17 5 | -11/Scrapyard | Discovered new exit (range 16) 327 | -11/Scrapyard | Entered Materials 328 | -10/Materials | Build established: Mutant 435 | -10/Materials | Discovered new exit (range 6) 662 | -10/Materials | Entered another Materials area 662 | -9/Materials | Evolved 2 slots: Propulsion x2 1457 | -9/Materials | Lost 3 parts (1p2n) 1542 | -9/Materials | Core integrity fell below 50% 1669 | -9/Materials | Discovered new exit (range 16) 1705 | -9/Materials | Entered another Materials area 1705 | -8/Materials | Evolved 2 slots: Propulsion x1, Utility x1 1792 | -8/Materials | Found Powered Armor 1794 | -8/Materials | Found Powered Armor 1796 | -8/Materials | Found Powered Armor 1799 | -8/Materials | Found Powered Armor 2216 | -8/Materials | Lost 4 parts (1p2n1w) 2491 | -8/Materials | Build established: Scavenger-Mutant 2666 | -8/Materials | Lost 9 parts (1p6n2w) 2958 | -8/Materials | Core integrity fell below 50% 2991 | -8/Materials | Lost 3 parts (1p1n1w) 3149 | -8/Materials | Core integrity fell below 20% 3161 | -8/Materials | Destroyed by G-47 Trooper with Particle Gun Last Messages --------------- 03137_ Shotgun destroyed. 03138_ Acquired 50 matter. 03139_ K-01 Serf collects debris. 03139_ VSS Leg destroyed. 03140_ R-06 Scavenger collects Aluminum Leg. 03142_ Aluminum Leg destroyed. 03147_ K-01 Serf collects debris. 03149_ Power failure, Deuterium Engine shutdown. 03149_ Deuterium Engine destroyed. 03152_ Powered Armor severed. 03153_ Kicked G-47 Trooper. 03155_ Aluminum Leg destroyed. 03156_ Imp. Medium Laser destroyed. 03158_ Slammed into G-47 Trooper. 03158_ Com. Battery destroyed. 03159_ Acquired 19 matter. 03160_ R-06 Scavenger collects Lgt. Nuclear Core. 03161_ Overheating: System interference. 03161_ Core Analyzer temporarily disabled. Map ----- +----------------------------------------------------+ | | | | | | | | | | | ???????????????????????????????????????? | | ???????????????????????????????????????? | | ####???????????????????????????????????? | | " #???????????????????????????????????? | | S #???????????????????????????????????? | | #???????????????????????????????????? | | #???????????????????????????????????? | | #?########??????????????????????????? | | ??# #??????????????????????????? | | +##### / #??????????????????????????? | | !+ #??????????????????????????? | | ##### #?????????????????#????????? | | #???# #???????????????H ?????????? | | #???# ! #??????????????? ??????????? | | ########+#############+### ???????????? | | % %% ??????????? | | *% % % ??????????? | | %% % [ % ??????????? | | +#############"##### ###########?????? | | % ##???# % # #kgcr #?????? | | """ ##???# # #g@c """ #?????? | | """ #????# + /c" g """ #?????? | | """ #????# !! # # """ """ #?????? | | #????# # # #?????? | | """ #????# #a # #?????? | | """ #????# * # # = #?????? | | """ #????# # # #?????? | | #????# # ###########?????? | | ####??????########## #???????????????? | | ???????????????????# #???????????????? | | ???????????????????# #???????????????? | | ???????????????????# #???????????????? | | ???????????????????# #???????????????? | | ???????????????????# #???????????????? | | ???????????????????# #???????????????? | | ???????????????????# +???????????????? | | ???????????????????? ????????????????? | | ???????????????????????????????????????? | | ???????????????????????????????????????? | | ???????????????????????????????????????? | | ???????????????????????????????????????? | | ???????????????????????????????????????? | | ???????????????????????????????????????? | | ???????????????????????????????????????? | | ???????????????????????????????????????? | +----------------------------------------------------+ Best States ------------- Heat Dissipation 31 Energy Generation 18 Energy Capacity 475 Matter Stores 300 Matter Capacity 300 Sight Range 16 Terrain Scan Range 16 Terrain Scan Density 10 Armor Coverage 400 Evasion (%) 55 Targeting Accuracy 16 Core Analysis 6 Item Schematics ----------------- None Robot Schematics ------------------ None Fabricated ------------ Nothing Repaired ---------- Nothing Studied --------- None Alien Tech Used ----------------- None Achievements -------------- Heavy Suspicion Challenges ------------ None Game ------ Seed ShadeLaserGenerator Manual? 0 Play Time 00:32:54 Cumulative 28.1 hours Start 2025.11.30 @ 06:57:43 End 2025.11.30 @ 07:34:47 Sessions 1 Manual Loads 0 Difficulty Rogue Special Mode None Game No. 58 Rogue 58 Adventurer 0 Explorer 0 Win Type - Total 0 Types 0/0/0/0/0/0/0/0/0/0 Lore% 6 Gallery% 23 Achievement% 14 Wizard Run 0 Options --------- Layout 1 ASCII 0 Keyboard 0 Movement Mouse Keybinds 0 Fullscreen 1 Font 24/Smallcaps Map View 50x35 Zoom Use 0% Tactical HUD 1 Map Filters NONE Filters NONE Steam 1 RUN: 0b656934-088a-43e4-b5d3-d453d7e7d272